[Event "22nd ECCC Women 2017"]
[Site "Antalya"]
[Date "2017.10.10"]
[Round "2"]
[White "Ovechkin, Lilia"]
[Black "Arda, Cagil Irmak"]
[Result "0-1"]
[ECO "D00"]
[WhiteElo "1779"]
[BlackElo "2040"]
[Annotator "NA"]
[PlyCount "84"]
[EventType "team-tourn"]
[EventCountry "TUR"]
[SourceTitle "playchess.com"]
[Source "ChessBase"]
[SourceQuality "1"]
[WhiteTeam "Beer Sheva"]
[BlackTeam "Anatolia"]
[TimeControl "40/5400+30:1800+30"]

1. d4 Nf6 2. Bg5 d5 {[%emt 0:01:30]} 3. Bxf6 {[%emt 0:02:30]} gxf6 {[%emt 0:00:00]} 4. e3 {[%emt 0:00:30]} c5 {[%emt 0:03:00]} 5. dxc5 {[%emt 0:08:30]} e6 {[%emt 0:07:30]} 6. c4 {[%emt 0:14:30]} dxc4 {[%emt 0:00:30]} 7. Qxd8+ {[%emt 0:08:30]} Kxd8 {[%emt 0:00:30]} 8. Nc3 {[%emt 0:03:30]} Bxc5 {[%emt 0:01:30]} 9. Bxc4 {[%emt 0:02:30]} Ke7 {[%emt 0:02:30]} 10. Nf3 {[%emt 0:02:30]} a6 {[%emt 0:03:30]} 11. O-O {[%emt 0:05:30]} b5 {[%emt 0:01:30]} 12. Be2 {[%emt 0:00:30]} Bb7 {[%emt 0:10:30]} 13. Rac1 {[%emt 0:00:30]} Nd7 {[%emt 0:01:30]} 14. Rfd1 {[%emt 0:00:30]} Rhg8 {[%emt 0:03:30]} 15. g3 {[%emt 0:05:30]} Rac8 {[%emt 0:01:30]} 16. Ne1 {[%emt 0:07:30]} Ne5 {[%emt 0:07:30]} 17. Bf1 {[%emt 0:01:30]} Bb4 {[%emt 0:07:30]} 18. Bg2 {[%emt 0:04:30]} Bxg2 {[%emt 0:01:30]} 19. Kxg2 {[%emt 0:00:30]} Bxc3 {[%emt 0:00:30]} 20. Rxc3 {[%emt 0:01:30]} Rxc3 {[%emt 0:00:30]} 21. bxc3 {[%emt 0:00:00]} Rc8 {[%emt 0:00:00]} 22. f4 {[%emt 0:01:00]} Nc4 {[%emt 0:01:00]} 23. Kf2 {[%emt 0:15:18]} Nb2 {[%emt 0:03:30]} 24. Rc1 {[%emt 0:01:19]} Rxc3 {[%emt 0:02:30]} 25. Rxc3 {[%emt 0:03:26]} Nd1+ {[%emt 0:00:30]} 26. Kf3 {[%emt 0:00:00]} Nxc3 {[%emt 0:00:00]} 27. a3 {[%emt 0:00:00]} f5 {[%emt 0:07:00]} 28. g4 {[%emt 0:01:49]} a5 {[%emt 0:03:30]} 29. gxf5 {[%emt 0:03:06]} exf5 {[%emt 0:00:30]} 30. Nc2 {[%emt 0:00:02]} Kf6 {[%emt 0:08:30]} 31. Kf2 {[%emt 0:02:42]} Ke6 {[%emt 0:04:21]} 32. Nd4+ {[%emt 0:00:56]} Kd5 {[%emt 0:04:26]} 33. Nxf5 {[%emt 0:00:50]} Nb1 {[%emt 0:07:14]} 34. e4+ {[%emt 0:00:51]} Kc5 {[%emt 0:04:52]} 35. e5 {[%emt 0:00:47]} Nxa3 {[%emt 0:01:28]} 36. Nd6 {[%emt 0:00:40]} b4 {[%emt 0:01:02]} 37. Nxf7 {[%emt 0:02:20]} b3 {[%emt 0:00:30]} 38. e6 {[%emt 0:00:30]} Kc6 {[%emt 0:00:30]} 39. Ne5+ {[%emt 0:00:30]} Kd6 {[%emt 0:00:30]} 40. Nd3 {[%emt 0:00:30]} Nc4 {[%emt 0:00:07]} 41. Kf3 {[%emt 0:10:54]} b2 {[%emt 0:01:30]} 42. Nxb2 {[%emt 0:01:30]} Nxb2 {[%emt 0:00:00]} 0-1

[Event "22nd ECCC Women 2017"]
[Site "Antalya"]
[Date "2017.10.11"]
[Round "3"]
[White "Voit, Daria"]
[Black "Cosma, Elena-Luminita"]
[Result "1/2-1/2"]
[ECO "E11"]
[WhiteElo "2387"]
[BlackElo "2333"]
[Annotator "ChessBase"]
[PlyCount "61"]
[EventType "team-tourn"]
[EventCountry "TUR"]
[SourceTitle "playchess.com"]
[Source "ChessBase"]
[SourceQuality "1"]
[WhiteTeam "Legacy Square Capital"]
[BlackTeam "Timisoara"]
[TimeControl "40/5400+30:1800+30"]

1. d4 {[%emt 0:00:30]} d5 {[%emt 0:01:00]} 2. c4 {[%emt 0:00:00]} e6 {[%emt 0:00:00]} 3. Nf3 {[%emt 0:00:00]} Nf6 {[%emt 0:00:00]} 4. g3 {[%emt 0:00:00]} Bb4+ {[%emt 0:00:30]} 5. Bd2 {[%emt 0:00:00]} Be7 {[%emt 0:00:00]} 6. Bg2 {[%emt 0:00:00]} c6 {[%emt 0:00:00]} 7. Qc2 {[%emt 0:00:00]} Nbd7 {[%emt 0:00:30]} 8. O-O {[%emt 0:00:30]} O-O {[%emt 0:00:30]} 9. a4 {[%emt 0:00:30]} a5 {[%emt 0:00:30]} 10. Rc1 {[%emt 0:00:00]} b6 {[%emt 0:03:30]} 11. cxd5 {[%emt 0:00:00]} cxd5 {[%emt 0:00:00]} 12. Nc3 {[%emt 0:04:30]} Ba6 {[%emt 0:01:00]} 13. Nb5 {[%emt 0:03:30]} Ne4 {[%emt 0:09:30]} 14. Be1 {[%emt 0:19:30]} Rc8 {[%emt 0:07:30]} 15. Qb3 {[%emt 0:06:30]} Rxc1 {[%emt 0:13:30]} 16. Rxc1 {[%emt 0:00:30]} Qb8 {[%emt 0:00:00]} 17. e3 {[%emt 0:01:30]} Rc8 {[%emt 0:00:00]} 18. Rxc8+ {[%emt 0:01:30]} Qxc8 {[%emt 0:00:30]} 19. Bf1 {[%emt 0:00:30]} Qc1 {[%emt 0:05:30]} 20. Kg2 {[%emt 0:05:30]} g5 {[%emt 0:10:30]} 21. h3 {[%emt 0:05:30]} h5 {[%emt 0:01:30]} 22. Bc3 {[%emt 0:01:30]} Ndf6 {[%emt 0:10:30]} 23. Bd3 {[%emt 0:11:30]} g4 {[%emt 0:18:31]} 24. hxg4 {[%emt 0:00:30]} Nxf2 {[%emt 0:08:57]} 25. Kxf2 {[%emt 0:12:30]} Nxg4+ {[%emt 0:01:17]} 26. Kg2 {[%emt 0:00:00]} Nxe3+ {[%emt 0:00:43]} 27. Kf2 {[%emt 0:02:00]} Ng4+ {[%emt 0:02:54]} 28. Kg2 {[%emt 0:00:30]} Ne3+ {[%emt 0:00:35]} 29. Kf2 {[%emt 0:00:30]} Ng4+ {[%emt 0:00:42]} 30. Kg2 {[%emt 0:00:00]} Ne3+ {[%emt 0:00:07]} 31. Kf2 {[%emt 0:00:00]} 1/2-1/2

[Event "22nd ECCC Women 2017"]
[Site "Antalya"]
[Date "2017.10.12"]
[Round "3"]
[White "Yildiz, Betul Cemre"]
[Black "Haussernot, Cecile"]
[Result "1-0"]
[ECO "B51"]
[WhiteElo "2350"]
[BlackElo "2169"]
[Annotator "ChessBase"]
[PlyCount "113"]
[EventType "team-tourn"]
[EventCountry "TUR"]
[WhiteTeam "Anatolia"]
[BlackTeam "Mulhouse Philidor"]
[TimeControl "40/5400+30:1800+30"]

1. e4 {[%emt 0:00:30]} c5 {[%emt 0:01:00]} 2. Nf3 {[%emt 0:00:30]} d6 {[%emt 0:00:30]} 3. Bb5+ {[%emt 0:00:30]} Nd7 {[%emt 0:00:30]} 4. d4 {[%emt 0:00:30]} cxd4 {[%emt 0:00:30]} 5. Qxd4 {[%emt 0:00:00]} a6 {[%emt 0:00:00]} 6. Bxd7+ {[%emt 0:00:00]} Bxd7 {[%emt 0:00:00]} 7. c4 {[%emt 0:00:30]} Nf6 {[%emt 0:00:30]} 8. Nc3 {[%emt 0:02:30]} g6 {[%emt 0:11:30]} 9. O-O {[%emt 0:08:30]} Bg7 {[%emt 0:02:30]} 10. c5 {[%emt 0:05:30]} dxc5 {[%emt 0:06:30]} 11. Qxc5 {[%emt 0:00:30]} Rc8 {[%emt 0:00:30]} 12. Qa3 {[%emt 0:00:30]} O-O {[%emt 0:02:30]} 13. Rd1 {[%emt 0:07:30]} Re8 {[%emt 0:23:30]} 14. h3 {[%emt 0:10:30]} Rxc3 {[%emt 0:19:30]} 15. Qxc3 {[%emt 0:02:30]} Nxe4 {[%emt 0:03:30]} 16. Qb4 {[%emt 0:00:30]} Nd6 {[%emt 0:01:30]} 17. Bf4 {[%emt 0:03:30]} a5 {[%emt 0:00:30]} 18. Qd2 {[%emt 0:12:30]} Ba4 {[%emt 0:01:30]} 19. Rdc1 {[%emt 0:00:00]} e5 {[%emt 0:05:56]} 20. Bg5 {[%emt 0:07:00]} Qb6 {[%emt 0:01:05]} 21. Be3 {[%emt 0:00:30]} Qa6 {[%emt 0:00:33]} 22. b3 {[%emt 0:08:30]} Bb5 {[%emt 0:00:43]} 23. Re1 {[%emt 0:12:42]} e4 {[%emt 0:00:53]} 24. Nd4 {[%emt 0:00:30]} Bd3 {[%emt 0:00:05]} 25. Rac1 {[%emt 0:00:24]} f5 {[%emt 0:00:34]} 26. Ne2 {[%emt 0:01:39]} Nf7 {[%emt 0:00:36]} 27. Rc5 {[%emt 0:02:35]} Be5 {[%emt 0:12:37]} 28. Nc1 {[%emt 0:05:29]} Rd8 {[%emt 0:00:27]} 29. Nxd3 {[%emt 0:00:58]} Rxd3 {[%emt 0:00:10]} 30. Qxa5 {[%emt 0:03:29]} Qd6 {[%emt 0:01:19]} 31. Rcc1 {[%emt 0:03:15]} Kg7 {[%emt 0:01:39]} 32. Qc5 {[%emt 0:01:15]} Qd8 {[%emt 0:01:20]} 33. Qc8 {[%emt 0:00:20]} Qd5 {[%emt 0:01:36]} 34. Bc5 {[%emt 0:00:33]} h6 {[%emt 0:00:37]} 35. Qf8+ {[%emt 0:00:55]} Kh7 {[%emt 0:00:04]} 36. Be3 {[%emt 0:00:17]} Bc3 {[%emt 0:01:14]} 37. Rf1 {[%emt 0:00:26]} g5 {[%emt 0:00:15]} 38. Qc5 {[%emt 0:00:02]} Qxc5 {[%emt 0:01:11]} 39. Bxc5 {[%emt 0:00:30]} Ne5 {[%emt 0:00:30]} 40. Rxc3 {[%emt 0:00:30]} Rxc3 {[%emt 0:30:30]} 41. Bd4 {[%emt 0:30:30]} Nf3+ {[%emt 0:00:30]} 42. gxf3 {[%emt 0:00:30]} Rxf3 {[%emt 0:00:30]} 43. Rc1 {[%emt 0:00:30]} Rxh3 {[%emt 0:00:30]} 44. Rc7+ {[%emt 0:00:30]} Kg6 {[%emt 0:00:30]} 45. Rxb7 {[%emt 0:00:30]} Rd3 {[%emt 0:00:30]} 46. Rb6+ {[%emt 0:00:30]} Kh5 {[%emt 0:00:30]} 47. Bc5 {[%emt 0:00:30]} f4 {[%emt 0:00:30]} 48. Re6 {[%emt 0:00:30]} Rd1+ {[%emt 0:00:00]} 49. Kg2 {[%emt 0:00:00]} Re1 {[%emt 0:00:00]} 50. a4 {[%emt 0:00:00]} Kg4 {[%emt 0:00:00]} 51. Rxe4 {[%emt 0:00:00]} Rxe4 {[%emt 0:00:00]} 52. f3+ {[%emt 0:00:00]} Kf5 {[%emt 0:00:00]} 53. fxe4+ {[%emt 0:00:00]} Kxe4 {[%emt 0:00:00]} 54. a5 {[%emt 0:00:00]} Kd5 {[%emt 0:00:00]} 55. a6 {[%emt 0:00:00]} Kc6 {[%emt 0:00:00]} 56. b4 {[%emt 0:00:00]} g4 {[%emt 0:00:00]} 57. b5+ {[%emt 0:00:00]} 1-0

[Event "22nd ECCC Women 2017"]
[Site "Antalya"]
[Date "2017.10.11"]
[Round "3"]
[White "Fataliyeva, Ulviyya"]
[Black "Badelka, Olga"]
[Result "1-0"]
[ECO "B30"]
[WhiteElo "2348"]
[BlackElo "2353"]
[Annotator "ChessBase"]
[PlyCount "85"]
[EventType "team-tourn"]
[EventCountry "TUR"]
[SourceTitle "playchess.com"]
[Source "ChessBase"]
[SourceQuality "1"]
[WhiteTeam "Odlar Yurdu"]
[BlackTeam "Bossa Nova"]
[TimeControl "40/5400+30:1800+30"]

1. e4 {[%emt 0:00:30]} c5 {[%emt 0:01:00]} 2. Nf3 {[%emt 0:00:00]} Nc6 {[%emt 0:00:00]} 3. Bb5 {[%emt 0:00:00]} e6 {[%emt 0:00:00]} 4. O-O {[%emt 0:00:30]} Nge7 {[%emt 0:00:30]} 5. c3 {[%emt 0:00:00]} a6 {[%emt 0:00:30]} 6. Ba4 {[%emt 0:00:00]} b5 {[%emt 0:00:30]} 7. Bc2 {[%emt 0:00:00]} Bb7 {[%emt 0:00:30]} 8. Qe2 {[%emt 0:00:00]} Ng6 {[%emt 0:01:30]} 9. a4 {[%emt 0:01:30]} c4 {[%emt 0:03:30]} 10. d3 {[%emt 0:04:30]} cxd3 {[%emt 0:00:30]} 11. Bxd3 {[%emt 0:00:30]} b4 {[%emt 0:00:00]} 12. Be3 {[%emt 0:05:30]} Be7 {[%emt 0:01:00]} 13. Nbd2 {[%emt 0:00:30]} bxc3 {[%emt 0:11:30]} 14. bxc3 {[%emt 0:00:30]} Nce5 {[%emt 0:00:30]} 15. Bc2 {[%emt 0:36:30]} Nxf3+ {[%emt 0:06:30]} 16. Nxf3 {[%emt 0:00:30]} O-O {[%emt 0:01:30]} 17. a5 {[%emt 0:05:30]} Bf6 {[%emt 0:10:30]} 18. Rab1 {[%emt 0:04:30]} Qc7 {[%emt 0:06:30]} 19. Rfc1 {[%emt 0:05:30]} Rfc8 {[%emt 0:05:30]} 20. Bd3 {[%emt 0:02:30]} d6 {[%emt 0:13:30]} 21. Rb6 {[%emt 0:02:30]} Rcb8 {[%emt 0:02:30]} 22. Rcb1 {[%emt 0:05:30]} Bc6 {[%emt 0:09:30]} 23. Nd4 {[%emt 0:02:30]} Bxd4 {[%emt 0:00:30]} 24. cxd4 {[%emt 0:00:30]} Rxb6 {[%emt 0:02:30]} 25. Rxb6 {[%emt 0:00:30]} Bb7 {[%emt 0:03:11]} 26. Qc2 {[%emt 0:03:22]} Qd7 {[%emt 0:00:17]} 27. Qb1 {[%emt 0:00:00]} Bc8 {[%emt 0:01:11]} 28. Qb4 {[%emt 0:00:45]} Nf8 {[%emt 0:05:09]} 29. Rxd6 {[%emt 0:01:06]} Qe8 {[%emt 0:03:25]} 30. d5 {[%emt 0:01:51]} exd5 {[%emt 0:01:12]} 31. exd5 {[%emt 0:00:26]} Bd7 {[%emt 0:01:23]} 32. Rxa6 {[%emt 0:00:45]} Rc8 {[%emt 0:00:14]} 33. Rb6 {[%emt 0:00:43]} Qe5 {[%emt 0:00:54]} 34. Qd2 {[%emt 0:02:17]} f5 {[%emt 0:03:59]} 35. Bf1 {[%emt 0:02:30]} Ng6 {[%emt 0:01:17]} 36. f4 {[%emt 0:01:51]} Qa1 {[%emt 0:02:49]} 37. Rb7 {[%emt 0:02:26]} Rd8 {[%emt 0:01:20]} 38. Qb2 {[%emt 0:02:39]} Qa4 {[%emt 0:02:05]} 39. Rb4 {[%emt 0:03:25]} Qd1 {[%emt 0:00:23]} 40. Qd2 {[%emt 0:00:00]} Qa1 {[%emt 0:01:11]} 41. Bd4 {[%emt 0:07:54]} Qa3 {[%emt 0:00:30]} 42. Bb2 {[%emt 0:03:30]} Qxa5 {[%emt 0:00:30]} 43. Qd4 {[%emt 0:00:30]} 1-0

[Event "22nd ECCC Women 2017"]
[Site "Antalya"]
[Date "2017.10.11"]
[Round "3"]
[White "Zaiatz, Elena"]
[Black "Mammadova, Gulnar"]
[Result "1-0"]
[ECO "D15"]
[WhiteElo "2334"]
[BlackElo "2385"]
[Annotator "ChessBase"]
[PlyCount "69"]
[EventType "team-tourn"]
[EventCountry "TUR"]
[SourceTitle "playchess.com"]
[Source "ChessBase"]
[SourceQuality "1"]
[WhiteTeam "Bossa Nova"]
[BlackTeam "Odlar Yurdu"]
[TimeControl "40/5400+30:1800+30"]

1. d4 {[%emt 0:00:30]} d5 {[%emt 0:01:00]} 2. c4 {[%emt 0:00:00]} c6 {[%emt 0:00:30]} 3. Nf3 {[%emt 0:00:00]} Nf6 {[%emt 0:00:30]} 4. Nc3 {[%emt 0:00:30]} a6 {[%emt 0:00:00]} 5. a4 {[%emt 0:07:30]} e6 {[%emt 0:00:00]} 6. g3 {[%emt 0:00:30]} Bb4 {[%emt 0:00:30]} 7. Qb3 {[%emt 0:02:30]} a5 {[%emt 0:03:30]} 8. c5 {[%emt 0:01:30]} b6 {[%emt 0:03:30]} 9. cxb6 {[%emt 0:01:30]} Qxb6 {[%emt 0:00:30]} 10. Bg2 {[%emt 0:02:30]} Nbd7 {[%emt 0:03:30]} 11. O-O {[%emt 0:00:30]} Ba6 {[%emt 0:02:30]} 12. Qc2 {[%emt 0:02:30]} c5 {[%emt 0:04:30]} 13. Na2 {[%emt 0:06:30]} cxd4 {[%emt 0:04:30]} 14. Nxb4 {[%emt 0:02:30]} Qxb4 {[%emt 0:03:30]} 15. b3 {[%emt 0:00:30]} Rc8 {[%emt 0:08:30]} 16. Qa2 {[%emt 0:00:00]} Nc5 {[%emt 0:04:30]} 17. Ba3 {[%emt 0:05:00]} Qxb3 {[%emt 0:02:30]} 18. Qd2 {[%emt 0:00:00]} Qb6 {[%emt 0:21:30]} 19. Rab1 {[%emt 0:09:00]} Qc7 {[%emt 0:03:30]} 20. Rfc1 {[%emt 0:00:30]} Nfd7 {[%emt 0:03:30]} 21. Nxd4 {[%emt 0:17:30]} O-O {[%emt 0:04:30]} 22. Nb5 {[%emt 0:09:30]} Qb6 {[%emt 0:03:30]} 23. e4 {[%emt 0:00:00]} Ne5 {[%emt 0:09:27]} 24. exd5 {[%emt 0:04:00]} Ncd3 {[%emt 0:05:15]} 25. Rd1 {[%emt 0:07:30]} Rfd8 {[%emt 0:01:57]} 26. Nd6 {[%emt 0:00:30]} Rxd6 {[%emt 0:02:37]} 27. Rxb6 {[%emt 0:00:30]} Rxb6 {[%emt 0:00:01]} 28. f4 {[%emt 0:03:17]} Nd7 {[%emt 0:02:10]} 29. dxe6 {[%emt 0:03:04]} fxe6 {[%emt 0:00:57]} 30. Qxa5 {[%emt 0:01:07]} Bc4 {[%emt 0:00:24]} 31. Qa7 {[%emt 0:00:54]} N3c5 {[%emt 0:01:43]} 32. Bxc5 {[%emt 0:00:46]} Rxc5 {[%emt 0:00:05]} 33. Qxd7 {[%emt 0:00:53]} Rb8 {[%emt 0:00:32]} 34. Rc1 {[%emt 0:00:28]} Rbc8 {[%emt 0:00:29]} 35. Bb7 {[%emt 0:00:46]} 1-0

[Event "22nd ECCC Women 2017"]
[Site "Antalya"]
[Date "2017.10.11"]
[Round "3"]
[White "Balajayeva, Khanim"]
[Black "Stetsko, Lanita"]
[Result "1/2-1/2"]
[ECO "C54"]
[WhiteElo "2319"]
[BlackElo "2254"]
[Annotator "ChessBase"]
[PlyCount "141"]
[EventType "team-tourn"]
[EventCountry "TUR"]
[WhiteTeam "Odlar Yurdu"]
[BlackTeam "Bossa Nova"]
[TimeControl "40/5400+30:1800+30"]

1. e4 {[%emt 0:00:30]} e5 {[%emt 0:01:00]} 2. Nf3 {[%emt 0:00:00]} Nc6 {[%emt 0:00:00]} 3. Bc4 {[%emt 0:00:00]} Bc5 {[%emt 0:00:00]} 4. c3 {[%emt 0:00:30]} Nf6 {[%emt 0:00:30]} 5. d3 {[%emt 0:00:00]} d6 {[%emt 0:00:30]} 6. O-O {[%emt 0:01:00]} O-O {[%emt 0:00:30]} 7. Nbd2 {[%emt 0:02:30]} a5 {[%emt 0:02:30]} 8. h3 {[%emt 0:01:30]} h6 {[%emt 0:06:30]} 9. Re1 {[%emt 0:01:30]} Be6 {[%emt 0:00:30]} 10. Bb3 {[%emt 0:05:30]} Nh5 {[%emt 0:08:30]} 11. d4 {[%emt 0:09:30]} exd4 {[%emt 0:04:30]} 12. cxd4 {[%emt 0:02:30]} Bxb3 {[%emt 0:03:30]} 13. Nxb3 {[%emt 0:04:30]} Bb4 {[%emt 0:06:30]} 14. Bd2 {[%emt 0:01:30]} a4 {[%emt 0:01:30]} 15. d5 {[%emt 0:05:30]} Bxd2 {[%emt 0:03:30]} 16. Nbxd2 {[%emt 0:15:30]} Nb4 {[%emt 0:08:30]} 17. Re3 {[%emt 0:12:30]} Nf4 {[%emt 0:03:30]} 18. a3 {[%emt 0:01:30]} Nbd3 {[%emt 0:03:30]} 19. Qf1 {[%emt 0:06:30]} Nc5 {[%emt 0:04:30]} 20. g3 {[%emt 0:00:30]} Ng6 {[%emt 0:00:30]} 21. Rae1 {[%emt 0:00:30]} Qf6 {[%emt 0:09:30]} 22. Qb5 {[%emt 0:04:30]} b6 {[%emt 0:00:30]} 23. Qb4 {[%emt 0:01:30]} Rfe8 {[%emt 0:02:30]} 24. Nb1 {[%emt 0:01:30]} Re7 {[%emt 0:05:30]} 25. Nc3 {[%emt 0:00:30]} Ne5 {[%emt 0:04:58]} 26. Nxe5 {[%emt 0:01:30]} Qxe5 {[%emt 0:00:03]} 27. Nb5 {[%emt 0:07:47]} Nb3 {[%emt 0:10:05]} 28. R1e2 {[%emt 0:01:05]} Qh5 {[%emt 0:05:55]} 29. Kg2 {[%emt 0:02:33]} Nc5 {[%emt 0:01:09]} 30. Nd4 {[%emt 0:01:54]} Rae8 {[%emt 0:00:08]} 31. f3 {[%emt 0:01:53]} Rf8 {[%emt 0:03:25]} 32. h4 {[%emt 0:03:31]} Qg6 {[%emt 0:00:54]} 33. Nf5 {[%emt 0:01:12]} Ree8 {[%emt 0:00:33]} 34. Qd4 {[%emt 0:01:58]} Kh7 {[%emt 0:01:07]} 35. h5 {[%emt 0:01:27]} Qg5 {[%emt 0:00:13]} 36. f4 {[%emt 0:00:52]} Qf6 {[%emt 0:00:53]} 37. Qxf6 {[%emt 0:00:33]} gxf6 {[%emt 0:00:04]} 38. Kf3 {[%emt 0:00:09]} Ra8 {[%emt 0:00:55]} 39. g4 {[%emt 0:00:44]} Ra5 {[%emt 0:00:24]} 40. e5 {[%emt 0:00:00]} fxe5 {[%emt 0:31:06]} 41. fxe5 {[%emt 0:00:52]} dxe5 {[%emt 0:00:00]} 42. Rxe5 {[%emt 0:03:30]} Nd3 {[%emt 0:00:00]} 43. Re7 {[%emt 0:03:30]} Rxd5 {[%emt 0:00:00]} 44. R2e6 {[%emt 0:05:30]} Nxb2 {[%emt 0:00:00]} 45. Rxh6+ {[%emt 0:00:30]} Kg8 {[%emt 0:00:00]} 46. Rxc7 {[%emt 0:00:30]} Rd3+ {[%emt 0:00:00]} 47. Kf4 {[%emt 0:00:30]} Rxa3 {[%emt 0:00:00]} 48. Rxb6 {[%emt 0:00:30]} Nd3+ {[%emt 0:00:00]} 49. Kg5 {[%emt 0:00:37]} Ne5 {[%emt 0:00:00]} 50. Nh6+ {[%emt 0:07:26]} Kg7 {[%emt 0:00:00]} 51. Re6 {[%emt 0:01:05]} Nf3+ {[%emt 0:00:00]} 52. Kf4 {[%emt 0:00:30]} Nh4 {[%emt 0:00:00]} 53. g5 {[%emt 0:02:19]} Rb3 {[%emt 0:00:00]} 54. Ra6 {[%emt 0:03:51]} Ng2+ {[%emt 0:00:00]} 55. Ke4 {[%emt 0:01:58]} Rb4+ {[%emt 0:00:00]} 56. Kf3 {[%emt 0:01:08]} Nf4 {[%emt 0:00:00]} 57. Nf5+ {[%emt 0:00:29]} Kg8 {[%emt 0:00:00]} 58. Nh6+ {[%emt 0:02:41]} Kg7 {[%emt 0:00:00]} 59. Nf5+ {[%emt 0:00:42]} Kg8 {[%emt 0:00:00]} 60. Rca7 {[%emt 0:01:12]} Nxh5 {[%emt 0:00:00]} 61. Rxa4 {[%emt 0:00:02]} Rxa4 {[%emt 0:00:00]} 62. Rxa4 {[%emt 0:00:05]} Rb8 {[%emt 0:00:00]} 63. Kg4 {[%emt 0:01:18]} Ng7 {[%emt 0:00:00]} 64. Nh6+ {[%emt 0:00:07]} Kf8 {[%emt 0:00:50]} 65. Ra7 {[%emt 0:01:39]} Rb4+ {[%emt 0:00:28]} 66. Kf3 {[%emt 0:00:26]} Rb3+ {[%emt 0:00:13]} 67. Ke4 {[%emt 0:00:00]} Rb4+ {[%emt 0:00:05]} 68. Ke3 {[%emt 0:00:52]} Rb3+ {[%emt 0:00:08]} 69. Ke4 {[%emt 0:00:16]} Rb4+ {[%emt 0:00:01]} 70. Ke3 {[%emt 0:00:00]} Rb3+ {[%emt 0:00:30]} 71. Ke4 1/2-1/2

[Event "22nd ECCC Women 2017"]
[Site "Antalya"]
[Date "2017.10.11"]
[Round "3"]
[White "Dragomirescu, Angela"]
[Black "Savina, Anastasia"]
[Result "1/2-1/2"]
[ECO "A04"]
[WhiteElo "2231"]
[BlackElo "2350"]
[Annotator "ChessBase"]
[PlyCount "169"]
[EventType "team-tourn"]
[EventCountry "TUR"]
[SourceTitle "playchess.com"]
[Source "ChessBase"]
[SourceQuality "1"]
[WhiteTeam "Timisoara"]
[BlackTeam "Legacy Square Capital"]
[TimeControl "40/5400+30:1800+30"]

1. Nf3 {[%emt 0:00:30]} g6 {[%emt 0:01:00]} 2. g3 {[%emt 0:00:00]} Bg7 {[%emt 0:01:30]} 3. Bg2 {[%emt 0:00:00]} c5 {[%emt 0:00:00]} 4. O-O {[%emt 0:00:30]} Nc6 {[%emt 0:00:00]} 5. d3 {[%emt 0:00:30]} d6 {[%emt 0:02:30]} 6. c3 {[%emt 0:02:30]} e5 {[%emt 0:06:30]} 7. a3 {[%emt 0:01:30]} a5 {[%emt 0:03:30]} 8. a4 {[%emt 0:00:00]} h6 {[%emt 0:05:30]} 9. Na3 {[%emt 0:01:00]} Be6 {[%emt 0:01:30]} 10. Nb5 {[%emt 0:10:30]} Nge7 {[%emt 0:11:30]} 11. e4 {[%emt 0:05:30]} O-O {[%emt 0:01:30]} 12. Nd2 {[%emt 0:03:30]} f5 {[%emt 0:18:30]} 13. Nc4 {[%emt 0:18:30]} d5 {[%emt 0:04:30]} 14. exd5 {[%emt 0:00:30]} Nxd5 {[%emt 0:00:00]} 15. Re1 {[%emt 0:22:30]} f4 {[%emt 0:10:00]} 16. Ncd6 {[%emt 0:02:30]} Qe7 {[%emt 0:06:30]} 17. d4 {[%emt 0:02:30]} cxd4 {[%emt 0:16:46]} 18. cxd4 {[%emt 0:05:30]} f3 {[%emt 0:02:52]} 19. Bxf3 {[%emt 0:09:47]} Qf6 {[%emt 0:01:40]} 20. Ra3 {[%emt 0:00:34]} Nxd4 {[%emt 0:00:40]} 21. Nxd4 {[%emt 0:00:34]} exd4 {[%emt 0:00:02]} 22. Ne4 {[%emt 0:00:43]} Qf7 {[%emt 0:01:37]} 23. Nd6 {[%emt 0:06:18]} Qd7 {[%emt 0:01:35]} 24. Nc4 {[%emt 0:02:48]} Rae8 {[%emt 0:02:08]} 25. Ne5 {[%emt 0:00:30]} Bxe5 {[%emt 0:00:42]} 26. Rxe5 {[%emt 0:00:02]} Rf5 {[%emt 0:00:25]} 27. Rxf5 {[%emt 0:01:15]} Bxf5 {[%emt 0:00:05]} 28. Bxh6 {[%emt 0:00:23]} Nb4 {[%emt 0:00:20]} 29. Bd2 {[%emt 0:00:39]} Nc2 {[%emt 0:01:04]} 30. Rb3 {[%emt 0:00:18]} Qxa4 {[%emt 0:00:32]} 31. Rxb7 {[%emt 0:00:20]} Qa2 {[%emt 0:00:30]} 32. Rb5 {[%emt 0:01:30]} Qa1 {[%emt 0:00:29]} 33. Qxa1 {[%emt 0:00:53]} Nxa1 {[%emt 0:00:02]} 34. Bxa5 {[%emt 0:01:09]} Nc2 {[%emt 0:00:29]} 35. Bd2 {[%emt 0:00:57]} Kf7 {[%emt 0:00:56]} 36. Kg2 {[%emt 0:00:38]} Ne1+ {[%emt 0:01:03]} 37. Bxe1 {[%emt 0:00:30]} Rxe1 {[%emt 0:00:30]} 38. Rd5 {[%emt 0:00:00]} Bd3 {[%emt 0:00:00]} 39. g4 {[%emt 0:00:48]} Bf1+ {[%emt 0:00:33]} 40. Kg3 {[%emt 0:00:30]} d3 {[%emt 0:00:00]} 41. b4 {[%emt 0:18:11]} Ke6 {[%emt 0:09:30]} 42. Rd8 {[%emt 0:01:59]} Rb1 {[%emt 0:00:30]} 43. Kf4 {[%emt 0:04:05]} Rxb4+ {[%emt 0:05:13]} 44. Ke3 {[%emt 0:00:12]} Be2 {[%emt 0:09:13]} 45. h3 {[%emt 0:01:07]} Ke7 {[%emt 0:01:51]} 46. Rd5 {[%emt 0:00:43]} Ke6 {[%emt 0:01:25]} 47. Rd8 {[%emt 0:01:26]} Ke7 {[%emt 0:00:11]} 48. Rd5 {[%emt 0:00:58]} Ke6 {[%emt 0:00:04]} 49. Ra5 {[%emt 0:00:56]} Bxf3 {[%emt 0:04:06]} 50. Kxf3 {[%emt 0:00:01]} Rb1 {[%emt 0:02:41]} 51. Ra6+ {[%emt 0:00:37]} Ke5 {[%emt 0:00:37]} 52. Ke3 {[%emt 0:00:22]} g5 {[%emt 0:00:15]} 53. Ra5+ {[%emt 0:02:07]} Kf6 {[%emt 0:00:05]} 54. h4 {[%emt 0:01:32]} gxh4 {[%emt 0:01:06]} 55. Kxd3 {[%emt 0:00:03]} Rb4 {[%emt 0:01:32]} 56. f3 {[%emt 0:00:10]} Rb3+ {[%emt 0:00:05]} 57. Ke4 {[%emt 0:00:07]} Rb4+ {[%emt 0:00:16]} 58. Ke3 {[%emt 0:00:55]} Rb3+ {[%emt 0:00:01]} 59. Kf2 {[%emt 0:00:20]} Rb2+ {[%emt 0:00:07]} 60. Kg1 {[%emt 0:00:00]} h3 {[%emt 0:02:03]} 61. Rh5 {[%emt 0:00:00]} Kg6 {[%emt 0:00:03]} 62. Rxh3 {[%emt 0:02:36]} Kg5 {[%emt 0:00:13]} 63. Rh5+ {[%emt 0:01:01]} Kf4 {[%emt 0:00:48]} 64. Rf5+ {[%emt 0:00:38]} Kg3 {[%emt 0:00:30]} 65. Kf1 {[%emt 0:00:00]} Kh4 {[%emt 0:00:16]} 66. Rd5 {[%emt 0:01:57]} Kg3 {[%emt 0:00:19]} 67. Rf5 {[%emt 0:00:51]} Kh4 {[%emt 0:00:03]} 68. Ke1 {[%emt 0:00:30]} Rg2 {[%emt 0:00:48]} 69. Rd5 {[%emt 0:01:48]} Kg3 {[%emt 0:00:30]} 70. Rd3 {[%emt 0:00:30]} Kf4 {[%emt 0:00:47]} 71. Rd2 {[%emt 0:00:00]} Rg3 {[%emt 0:00:17]} 72. Rd3 {[%emt 0:00:52]} Rg2 {[%emt 0:00:07]} 73. Rd2 {[%emt 0:00:17]} Rg3 {[%emt 0:00:02]} 74. Rf2 {[%emt 0:00:15]} Rg1+ {[%emt 0:01:03]} 75. Ke2 {[%emt 0:00:37]} Ra1 {[%emt 0:00:04]} 76. Rf1 {[%emt 0:00:30]} Ra2+ {[%emt 0:01:18]} 77. Kd3 {[%emt 0:00:05]} Ra5 {[%emt 0:00:58]} 78. Kd4 {[%emt 0:00:33]} Rg5 {[%emt 0:00:27]} 79. Kd3 {[%emt 0:00:34]} Ra5 {[%emt 0:00:11]} 80. Kc4 {[%emt 0:00:43]} Rg5 {[%emt 0:00:53]} 81. Kd4 {[%emt 0:00:04]} Ra5 {[%emt 0:00:04]} 82. Kd3 {[%emt 0:01:05]} Ra3+ {[%emt 0:00:35]} 83. Kd4 {[%emt 0:00:26]} Ra5 {[%emt 0:00:03]} 84. Rg1 {[%emt 0:00:52]} Rg5 {[%emt 0:00:19]} 85. Rf1 {[%emt 0:00:08]} 1/2-1/2